[Event "Late-Titled-Tuesday-Blitz-March-12-2024"]
[Site "Chess.com"]
[Date "2024.03.12"]
[Round "9"]
[White "Likvidator228"]
[Black "stollenmonster"]
[Result "1-0"]
[WhiteElo "2618"]
[BlackElo "2831"]
[TimeControl "180+1"]
[EndTime "15:41:26 PDT"]
[Termination "Likvidator228 won by resignation"]

1. d4 {[%clk 0:02:59.2]} 1... Nf6 {[%clk 0:02:58.8]} 2. Nf3 {[%clk 0:02:59.2]}
2... e6 {[%clk 0:02:58.3]} 3. Bf4 {[%clk 0:02:59.3]} 3... d5 {[%clk 0:02:58.5]}
4. e3 {[%clk 0:03:00]} 4... Ne4 {[%clk 0:02:58.2]} 5. Nbd2 {[%clk 0:02:59]} 5...
Bd6 {[%clk 0:02:56.7]} 6. Bxd6 {[%clk 0:02:56]} 6... cxd6 {[%clk 0:02:56.6]} 7.
Bd3 {[%clk 0:02:55.2]} 7... f5 {[%clk 0:02:56.1]} 8. O-O {[%clk 0:02:51.8]} 8...
O-O {[%clk 0:02:55.6]} 9. c4 {[%clk 0:02:52.5]} 9... dxc4 {[%clk 0:02:55.2]} 10.
Nxc4 {[%clk 0:02:51.4]} 10... Nc6 {[%clk 0:02:51.4]} 11. Rc1 {[%clk 0:02:50.3]}
11... Qe7 {[%clk 0:02:47.2]} 12. a3 {[%clk 0:02:48.9]} 12... Bd7 {[%clk
0:02:46]} 13. b4 {[%clk 0:02:48.6]} 13... Rac8 {[%clk 0:02:31.5]} 14. h3 {[%clk
0:02:46.8]} 14... Be8 {[%clk 0:02:28.7]} 15. Nfd2 {[%clk 0:02:36]} 15... Bg6
{[%clk 0:02:25.4]} 16. Nxe4 {[%clk 0:02:29.1]} 16... fxe4 {[%clk 0:02:26.3]} 17.
Be2 {[%clk 0:02:29.5]} 17... d5 {[%clk 0:02:23.9]} 18. Nd2 {[%clk 0:02:08.6]}
18... a6 {[%clk 0:02:09.2]} 19. f4 {[%clk 0:02:00.8]} 19... exf3 {[%clk
0:01:58.4]} 20. Nxf3 {[%clk 0:02:00.9]} 20... Be4 {[%clk 0:01:46.1]} 21. Bd3
{[%clk 0:02:01.1]} 21... Qd6 {[%clk 0:01:28.5]} 22. Bxe4 {[%clk 0:01:54.7]}
22... dxe4 {[%clk 0:01:28.6]} 23. Nd2 {[%clk 0:01:55.3]} 23... Qd5 {[%clk
0:01:13.7]} 24. Qg4 {[%clk 0:01:49.8]} 24... Nxd4 {[%clk 0:00:55.3]} 25. Rxc8
{[%clk 0:01:31]} 25... Rxc8 {[%clk 0:00:54.2]} 26. exd4 {[%clk 0:01:17]} 26...
Qxd4+ {[%clk 0:00:43.2]} 27. Rf2 {[%clk 0:01:17.4]} 27... Rc1+ {[%clk
0:00:42.5]} 28. Nf1 {[%clk 0:01:15.9]} 28... Rxf1+ {[%clk 0:00:15.7]} 29. Kxf1
{[%clk 0:01:15.8]} 29... Qa1+ {[%clk 0:00:16.3]} 30. Ke2 {[%clk 0:01:15.9]}
30... Qb2+ {[%clk 0:00:17]} 31. Ke3 {[%clk 0:01:14.1]} 31... Qc3+ {[%clk
0:00:16.9]} 32. Kxe4 {[%clk 0:01:11.3]} 32... Qc4+ {[%clk 0:00:16.9]} 33. Kf3
{[%clk 0:01:10.2]} 33... Qd3+ {[%clk 0:00:14.9]} 34. Kf4 {[%clk 0:01:07.7]}
34... Qd6+ {[%clk 0:00:14.1]} 35. Ke3 {[%clk 0:01:04.7]} 35... Qe5+ {[%clk
0:00:14.5]} 36. Qe4 {[%clk 0:01:04.8]} 1-0

[Event "Late-Titled-Tuesday-Blitz-March-12-2024"]
[Site "Chess.com"]
[Date "2024.03.12"]
[Round "9"]
[White "chessamical"]
[Black "Knjazj"]
[Result "1-0"]
[WhiteElo "2217"]
[BlackElo "2010"]
[TimeControl "180+1"]
[EndTime "15:41:33 PDT"]
[Termination "chessamical won by resignation"]

1. d4 {[%clk 0:02:55.8]} 1... d6 {[%clk 0:02:58.3]} 2. e4 {[%clk 0:02:53.1]}
2... g6 {[%clk 0:02:58.6]} 3. Nc3 {[%clk 0:02:51.5]} 3... Bg7 {[%clk 0:02:59.1]}
4. Be3 {[%clk 0:02:49.5]} 4... Nf6 {[%clk 0:02:59.5]} 5. f3 {[%clk 0:02:46.2]}
5... O-O {[%clk 0:02:59.7]} 6. Qd2 {[%clk 0:02:45.7]} 6... Nc6 {[%clk
0:02:59.1]} 7. Nge2 {[%clk 0:02:36.1]} 7... e5 {[%clk 0:02:58.3]} 8. d5 {[%clk
0:02:34.4]} 8... Ne7 {[%clk 0:02:58.8]} 9. O-O-O {[%clk 0:02:31.9]} 9... Nd7
{[%clk 0:02:58]} 10. g4 {[%clk 0:02:32]} 10... f5 {[%clk 0:02:56.2]} 11. g5
{[%clk 0:02:20]} 11... f4 {[%clk 0:02:38.4]} 12. Bf2 {[%clk 0:02:18.3]} 12... b6
{[%clk 0:02:30.7]} 13. h4 {[%clk 0:02:17.1]} 13... a5 {[%clk 0:02:23]} 14. h5
{[%clk 0:02:14.3]} 14... Nc5 {[%clk 0:02:11.4]} 15. Nb5 {[%clk 0:02:03]} 15...
Ba6 {[%clk 0:02:04.8]} 16. Nec3 {[%clk 0:02:02.4]} 16... Qe8 {[%clk 0:02:03.9]}
17. Nxc7 {[%clk 0:01:59.8]} 17... Qd7 {[%clk 0:02:01.7]} 18. Nxa8 {[%clk
0:01:49]} 18... Rxa8 {[%clk 0:02:01.9]} 19. Bxa6 {[%clk 0:01:42.2]} 19... Rxa6
{[%clk 0:01:58.7]} 20. Qe2 {[%clk 0:01:33.3]} 20... Ra8 {[%clk 0:01:54.7]} 21.
Qb5 {[%clk 0:01:31.2]} 21... Qc7 {[%clk 0:01:49.4]} 22. Kb1 {[%clk 0:01:18.2]}
22... a4 {[%clk 0:01:44.7]} 23. a3 {[%clk 0:01:07.1]} 23... Ra5 {[%clk
0:01:43.1]} 24. Qe8+ {[%clk 0:01:04.7]} 24... Bf8 {[%clk 0:01:42]} 25. hxg6
{[%clk 0:01:00.7]} 25... Nxg6 {[%clk 0:01:41.4]} 26. Nb5 {[%clk 0:00:48.1]}
26... Qg7 {[%clk 0:01:36.6]} 27. Nxd6 {[%clk 0:00:38.5]} 27... Nb7 {[%clk
0:01:09.7]} 28. Qe6+ {[%clk 0:00:35.5]} 28... Kh8 {[%clk 0:01:07.3]} 29. Nf7+
{[%clk 0:00:19]} 29... Kg8 {[%clk 0:01:07.3]} 30. Nxe5+ {[%clk 0:00:15]} 30...
Kh8 {[%clk 0:00:56.5]} 31. Nxg6+ {[%clk 0:00:15]} 31... Qxg6 {[%clk 0:00:49.4]}
32. Qxg6 {[%clk 0:00:14.9]} 1-0

[Event "Late-Titled-Tuesday-Blitz-March-12-2024"]
[Site "Chess.com"]
[Date "2024.03.12"]
[Round "9"]
[White "sergiochess83"]
[Black "Mikhail_Bryakin"]
[Result "1-0"]
[WhiteElo "2908"]
[BlackElo "2740"]
[TimeControl "180+1"]
[EndTime "15:41:39 PDT"]
[Termination "sergiochess83 won on time"]

1. e4 {[%clk 0:02:54.5]} 1... c6 {[%clk 0:02:44.7]} 2. d4 {[%clk 0:02:52.5]}
2... d5 {[%clk 0:02:45.2]} 3. Nc3 {[%clk 0:02:53.4]} 3... dxe4 {[%clk
0:02:44.5]} 4. Nxe4 {[%clk 0:02:54.3]} 4... Bf5 {[%clk 0:02:44.7]} 5. Ng3 {[%clk
0:02:54.1]} 5... Bg6 {[%clk 0:02:44.9]} 6. h4 {[%clk 0:02:54.8]} 6... h6 {[%clk
0:02:44.5]} 7. Bd3 {[%clk 0:02:55.5]} 7... Bxd3 {[%clk 0:02:44.4]} 8. Qxd3
{[%clk 0:02:56.4]} 8... Nf6 {[%clk 0:02:43.7]} 9. N1e2 {[%clk 0:02:56.6]} 9...
e6 {[%clk 0:02:43.3]} 10. Bd2 {[%clk 0:02:56.2]} 10... Bd6 {[%clk 0:02:42.7]}
11. Ne4 {[%clk 0:02:55.3]} 11... Nxe4 {[%clk 0:02:41.5]} 12. Qxe4 {[%clk
0:02:56.2]} 12... Nd7 {[%clk 0:02:41.7]} 13. O-O-O {[%clk 0:02:56]} 13... Qc7
{[%clk 0:02:26]} 14. Kb1 {[%clk 0:02:52.1]} 14... O-O-O {[%clk 0:02:25.7]} 15.
Qf3 {[%clk 0:02:47.1]} 15... Nf6 {[%clk 0:01:53]} 16. c4 {[%clk 0:02:22.1]}
16... c5 {[%clk 0:01:44.2]} 17. Bc3 {[%clk 0:02:19.2]} 17... cxd4 {[%clk
0:01:31.8]} 18. Nxd4 {[%clk 0:02:20.1]} 18... a6 {[%clk 0:01:31.6]} 19. Nb3
{[%clk 0:02:09.1]} 19... Qe7 {[%clk 0:01:18.3]} 20. c5 {[%clk 0:01:59.5]} 20...
Bc7 {[%clk 0:01:14.5]} 21. c6 {[%clk 0:01:58.8]} 21... e5 {[%clk 0:00:39.8]} 22.
cxb7+ {[%clk 0:01:46.5]} 22... Kb8 {[%clk 0:00:40.4]} 23. Qc6 {[%clk 0:01:23.4]}
23... Ka7 {[%clk 0:00:38.4]} 24. Ba5 {[%clk 0:00:46.7]} 24... Bxa5 {[%clk
0:00:26]} 25. Nxa5 {[%clk 0:00:47.6]} 25... Qb4 {[%clk 0:00:07.9]} 26. Qc7
{[%clk 0:00:41.8]} 26... Rxd1+ {[%clk 0:00:04.7]} 27. Rxd1 {[%clk 0:00:41]} 1-0

[Event "Late-Titled-Tuesday-Blitz-March-12-2024"]
[Site "Chess.com"]
[Date "2024.03.12"]
[Round "9"]
[White "SamuraisOfChess"]
[Black "Mikhail_Golubev"]
[Result "1-0"]
[WhiteElo "2584"]
[BlackElo "2671"]
[TimeControl "180+1"]
[EndTime "15:41:40 PDT"]
[Termination "SamuraisOfChess won by checkmate"]

1. e4 {[%clk 0:03:00.1]} 1... c5 {[%clk 0:02:59.8]} 2. Nf3 {[%clk 0:02:59.7]}
2... d6 {[%clk 0:03:00.1]} 3. d4 {[%clk 0:03:00.3]} 3... cxd4 {[%clk 0:03:00.1]}
4. Nxd4 {[%clk 0:03:01.2]} 4... Nf6 {[%clk 0:03:00.3]} 5. Nc3 {[%clk 0:03:00.4]}
5... g6 {[%clk 0:03:00.5]} 6. Be2 {[%clk 0:02:59.4]} 6... Bg7 {[%clk 0:03:00.2]}
7. O-O {[%clk 0:02:59.9]} 7... O-O {[%clk 0:03:00.8]} 8. Be3 {[%clk 0:03:00.1]}
8... Nc6 {[%clk 0:03:00.3]} 9. Qd2 {[%clk 0:02:59]} 9... Bd7 {[%clk 0:02:59.9]}
10. h3 {[%clk 0:02:58.7]} 10... a6 {[%clk 0:02:56.9]} 11. f4 {[%clk 0:02:59]}
11... b5 {[%clk 0:02:54.7]} 12. Bf3 {[%clk 0:02:59.4]} 12... Rc8 {[%clk
0:02:49.4]} 13. Nxc6 {[%clk 0:02:51]} 13... Bxc6 {[%clk 0:02:46.9]} 14. Nd5
{[%clk 0:02:51.1]} 14... Bxd5 {[%clk 0:02:33.6]} 15. exd5 {[%clk 0:02:50.7]}
15... Qc7 {[%clk 0:02:32.8]} 16. c3 {[%clk 0:02:50.6]} 16... a5 {[%clk
0:02:24.6]} 17. f5 {[%clk 0:02:39.2]} 17... gxf5 {[%clk 0:02:16.2]} 18. Bh6
{[%clk 0:02:37.9]} 18... Bxh6 {[%clk 0:02:12.7]} 19. Qxh6 {[%clk 0:02:37.4]}
19... Kh8 {[%clk 0:02:12.5]} 20. Qg5 {[%clk 0:02:31.9]} 20... Rg8 {[%clk
0:02:02.5]} 21. Qxf5 {[%clk 0:02:31.4]} 21... Rg3 {[%clk 0:01:56.7]} 22. Rae1
{[%clk 0:02:25.4]} 22... Rcg8 {[%clk 0:01:55.2]} 23. Kh2 {[%clk 0:02:17]} 23...
R3g5 {[%clk 0:01:44.6]} 24. Qf4 {[%clk 0:02:13.6]} 24... Re5 {[%clk 0:01:43.2]}
25. Kh1 {[%clk 0:02:06.2]} 25... Reg5 {[%clk 0:01:26.3]} 26. Re2 {[%clk
0:02:03.9]} 26... Re5 {[%clk 0:00:35.1]} 27. Rfe1 {[%clk 0:02:01.1]} 27... Rxe2
{[%clk 0:00:33.9]} 28. Rxe2 {[%clk 0:02:02]} 28... Re8 {[%clk 0:00:28.2]} 29. g4
{[%clk 0:01:51.9]} 29... Qc4 {[%clk 0:00:26.2]} 30. Qf5 {[%clk 0:01:50.1]} 30...
Rf8 {[%clk 0:00:21.1]} 31. Rxe7 {[%clk 0:01:45.5]} 31... Qf1+ {[%clk 0:00:11.1]}
32. Kh2 {[%clk 0:01:46]} 32... Qf2+ {[%clk 0:00:11.8]} 33. Kh1 {[%clk 0:01:37]}
33... Qf1+ {[%clk 0:00:11.5]} 34. Kh2 {[%clk 0:01:37.5]} 34... Qf2+ {[%clk
0:00:12.1]} 35. Bg2 {[%clk 0:01:37.2]} 35... Qxf5 {[%clk 0:00:12.3]} 36. gxf5
{[%clk 0:01:38.1]} 36... b4 {[%clk 0:00:08.9]} 37. cxb4 {[%clk 0:01:32.7]} 37...
axb4 {[%clk 0:00:09.8]} 38. Rb7 {[%clk 0:01:33.1]} 38... Ra8 {[%clk 0:00:09]}
39. Rxf7 {[%clk 0:01:33.3]} 39... Nh5 {[%clk 0:00:08.8]} 40. Rb7 {[%clk
0:01:28.9]} 40... Nf4 {[%clk 0:00:03]} 41. Rxb4 {[%clk 0:01:28.4]} 41... Nxg2
{[%clk 0:00:03.7]} 42. Kxg2 {[%clk 0:01:29]} 42... Rxa2 {[%clk 0:00:04.4]} 43.
Rb6 {[%clk 0:01:27.9]} 43... Ra5 {[%clk 0:00:03.3]} 44. Rxd6 {[%clk 0:01:28]}
44... Rb5 {[%clk 0:00:03.9]} 45. f6 {[%clk 0:01:28.2]} 45... Rb4 {[%clk
0:00:04.8]} 46. Rd8# {[%clk 0:01:28.2]} 1-0

[Event "Late-Titled-Tuesday-Blitz-March-12-2024"]
[Site "Chess.com"]
[Date "2024.03.12"]
[Round "9"]
[White "Polish_fighter3000"]
[Black "SchmakAttack"]
[Result "1-0"]
[WhiteElo "3140"]
[BlackElo "2843"]
[TimeControl "180+1"]
[EndTime "15:41:45 PDT"]
[Termination "Polish_fighter3000 won by resignation"]

1. e4 {[%clk 0:03:00.9]} 1... e6 {[%clk 0:02:59.4]} 2. d4 {[%clk 0:03:00.6]}
2... d5 {[%clk 0:03:00.1]} 3. Nc3 {[%clk 0:03:00.7]} 3... Nf6 {[%clk 0:02:59.8]}
4. Bg5 {[%clk 0:02:59.7]} 4... dxe4 {[%clk 0:02:59.7]} 5. Nxe4 {[%clk
0:02:59.6]} 5... Be7 {[%clk 0:03:00.2]} 6. Bxf6 {[%clk 0:02:55.1]} 6... gxf6
{[%clk 0:02:59.9]} 7. Nf3 {[%clk 0:02:54.4]} 7... f5 {[%clk 0:02:59.8]} 8. Nc3
{[%clk 0:02:53.9]} 8... a6 {[%clk 0:02:59.8]} 9. Qe2 {[%clk 0:02:50.8]} 9... b5
{[%clk 0:02:58.2]} 10. O-O-O {[%clk 0:02:49.6]} 10... b4 {[%clk 0:02:58.2]} 11.
Na4 {[%clk 0:02:45.2]} 11... Qd5 {[%clk 0:02:58.4]} 12. c4 {[%clk 0:02:40.5]}
12... Qe4 {[%clk 0:02:54.6]} 13. Qd2 {[%clk 0:02:27.3]} 13... Bb7 {[%clk
0:01:50.1]} 14. d5 {[%clk 0:02:03.2]} 14... Bd6 {[%clk 0:01:16.8]} 15. Bd3
{[%clk 0:02:01.1]} 15... Qf4 {[%clk 0:01:16.3]} 16. Rhe1 {[%clk 0:01:51.1]}
16... Qxd2+ {[%clk 0:00:58.7]} 17. Nxd2 {[%clk 0:01:52]} 17... Nd7 {[%clk
0:00:33]} 18. Bxf5 {[%clk 0:01:46.1]} 18... O-O-O {[%clk 0:00:31.7]} 19. dxe6
{[%clk 0:01:39.1]} 19... fxe6 {[%clk 0:00:32.6]} 20. Bxe6 {[%clk 0:01:39.6]}
20... Kb8 {[%clk 0:00:32.7]} 21. Ne4 {[%clk 0:01:32.2]} 21... Bf4+ {[%clk
0:00:21.6]} 22. Kc2 {[%clk 0:01:32.3]} 22... Ne5 {[%clk 0:00:18.1]} 23. Nac5
{[%clk 0:01:32.6]} 23... a5 {[%clk 0:00:10.8]} 24. Nxb7 {[%clk 0:01:26.3]} 24...
Kxb7 {[%clk 0:00:11.7]} 25. g3 {[%clk 0:01:25.8]} 25... Rxd1 {[%clk 0:00:09.1]}
26. Rxd1 {[%clk 0:01:16.5]} 26... Bh6 {[%clk 0:00:08.8]} 27. f4 {[%clk
0:01:14.3]} 27... Nc6 {[%clk 0:00:06.2]} 28. Bd5 {[%clk 0:01:12.9]} 28... Kb6
{[%clk 0:00:06.6]} 29. Bxc6 {[%clk 0:01:07.1]} 29... Kxc6 {[%clk 0:00:07.5]} 30.
Rd5 {[%clk 0:01:07.1]} 30... a4 {[%clk 0:00:06.4]} 31. Rc5+ {[%clk 0:01:03]}
31... Kd7 {[%clk 0:00:05.1]} 32. Rb5 {[%clk 0:01:01.9]} 32... b3+ {[%clk
0:00:04.2]} 33. axb3 {[%clk 0:01:01.8]} 33... axb3+ {[%clk 0:00:05.1]} 34. Rxb3
{[%clk 0:01:02.4]} 34... Bg7 {[%clk 0:00:05.1]} 35. Rb5 {[%clk 0:01:01.2]} 35...
Kc6 {[%clk 0:00:05.2]} 36. b4 {[%clk 0:01:00.5]} 36... Ra8 {[%clk 0:00:05.3]}
37. Ra5 {[%clk 0:01:00.7]} 37... Rd8 {[%clk 0:00:04.9]} 38. Ra6+ {[%clk
0:01:00.3]} 38... Kb7 {[%clk 0:00:03.2]} 39. Nc5+ {[%clk 0:01:00.1]} 39... Kb8
{[%clk 0:00:03.9]} 40. Ne6 {[%clk 0:01:00.7]} 1-0

[Event "Late-Titled-Tuesday-Blitz-March-12-2024"]
[Site "Chess.com"]
[Date "2024.03.12"]
[Round "9"]
[White "GMKrikor"]
[Black "RandomNoob04"]
[Result "1-0"]
[WhiteElo "2886"]
[BlackElo "2656"]
[TimeControl "180+1"]
[EndTime "15:41:47 PDT"]
[Termination "GMKrikor won by resignation"]

1. Nf3 {[%clk 0:03:00.9]} 1... Nf6 {[%clk 0:02:59.6]} 2. c4 {[%clk 0:03:00.9]}
2... e6 {[%clk 0:02:56.3]} 3. Nc3 {[%clk 0:02:58]} 3... d5 {[%clk 0:02:56.4]} 4.
d4 {[%clk 0:02:57.6]} 4... Bb4 {[%clk 0:02:53]} 5. cxd5 {[%clk 0:02:57.4]} 5...
exd5 {[%clk 0:02:52.8]} 6. Bf4 {[%clk 0:02:57.7]} 6... O-O {[%clk 0:02:50.3]} 7.
e3 {[%clk 0:02:57.7]} 7... c5 {[%clk 0:02:42.1]} 8. Bd3 {[%clk 0:02:55.1]} 8...
Bg4 {[%clk 0:02:32.2]} 9. dxc5 {[%clk 0:02:48.1]} 9... Nbd7 {[%clk 0:02:31.6]}
10. O-O {[%clk 0:02:43.6]} 10... Nxc5 {[%clk 0:02:31.6]} 11. Rc1 {[%clk
0:02:12.2]} 11... Nxd3 {[%clk 0:02:24.6]} 12. Qxd3 {[%clk 0:02:10.9]} 12... Bxf3
{[%clk 0:02:25.4]} 13. gxf3 {[%clk 0:02:10.4]} 13... h6 {[%clk 0:01:54.1]} 14.
Nb5 {[%clk 0:02:05.9]} 14... a6 {[%clk 0:01:43.1]} 15. Nd4 {[%clk 0:02:05.8]}
15... Bd6 {[%clk 0:01:43]} 16. Bg3 {[%clk 0:02:03.7]} 16... Re8 {[%clk
0:01:35.3]} 17. Kg2 {[%clk 0:02:03.7]} 17... Qd7 {[%clk 0:01:31.6]} 18. Rc2
{[%clk 0:01:58]} 18... g6 {[%clk 0:00:59.8]} 19. Rfc1 {[%clk 0:01:54.3]} 19...
Nh5 {[%clk 0:00:57.5]} 20. Qb3 {[%clk 0:01:41]} 20... Be5 {[%clk 0:00:53.4]} 21.
Rc5 {[%clk 0:01:16.9]} 21... Rad8 {[%clk 0:00:41.8]} 22. Qd3 {[%clk 0:01:16.2]}
22... Qd6 {[%clk 0:00:32.3]} 23. Ne2 {[%clk 0:00:46.2]} 23... Nxg3 {[%clk
0:00:24.6]} 24. hxg3 {[%clk 0:00:46.6]} 24... Bxb2 {[%clk 0:00:24.9]} 25. R1c2
{[%clk 0:00:45.5]} 25... d4 {[%clk 0:00:20.1]} 26. e4 {[%clk 0:00:41.6]} 26...
Bc3 {[%clk 0:00:14.2]} 27. Rd5 {[%clk 0:00:41.3]} 27... Qb4 {[%clk 0:00:11.8]}
28. Nxc3 {[%clk 0:00:37.6]} 28... dxc3 {[%clk 0:00:01.5]} 29. Rxd8 {[%clk
0:00:37.1]} 1-0

[Event "Late-Titled-Tuesday-Blitz-March-12-2024"]
[Site "Chess.com"]
[Date "2024.03.12"]
[Round "9"]
[White "Stanbad1"]
[Black "IngOscarArdila"]
[Result "1-0"]
[WhiteElo "2518"]
[BlackElo "2345"]
[TimeControl "180+1"]
[EndTime "15:41:50 PDT"]
[Termination "Stanbad1 won on time"]

1. d4 {[%clk 0:03:00.9]} 1... Nf6 {[%clk 0:02:59.5]} 2. Nc3 {[%clk 0:03:01.5]}
2... d5 {[%clk 0:02:56.7]} 3. Bf4 {[%clk 0:03:00.9]} 3... e6 {[%clk 0:02:55.5]}
4. Nb5 {[%clk 0:03:00.5]} 4... Na6 {[%clk 0:02:54.7]} 5. e3 {[%clk 0:03:00.5]}
5... Bb4+ {[%clk 0:02:46.9]} 6. c3 {[%clk 0:03:00]} 6... Ba5 {[%clk 0:02:46.6]}
7. a4 {[%clk 0:02:59.1]} 7... c6 {[%clk 0:02:33.3]} 8. Nd6+ {[%clk 0:02:58.4]}
8... Kf8 {[%clk 0:02:33.1]} 9. Qb3 {[%clk 0:02:56.8]} 9... Qd7 {[%clk
0:01:55.9]} 10. Nf3 {[%clk 0:02:41]} 10... Ne8 {[%clk 0:01:01.8]} 11. Qa3 {[%clk
0:02:24.5]} 11... Qe7 {[%clk 0:00:51.2]} 12. Ng5 {[%clk 0:01:43.6]} 12... f6
{[%clk 0:00:42.7]} 13. Ngf7 {[%clk 0:01:29.2]} 13... Rg8 {[%clk 0:00:37.9]} 14.
Nxe8 {[%clk 0:01:09.5]} 14... Qxa3 {[%clk 0:00:30.5]} 15. Rxa3 {[%clk
0:01:08.3]} 15... Kxe8 {[%clk 0:00:19.3]} 16. Nd6+ {[%clk 0:01:06.9]} 16... Kd7
{[%clk 0:00:15]} 17. Rb3 {[%clk 0:01:06.5]} 17... b6 {[%clk 0:00:13.8]} 18. Nxc8
{[%clk 0:01:05.6]} 18... Raxc8 {[%clk 0:00:13.5]} 19. Bxa6 {[%clk 0:01:05.2]}
19... Rcd8 {[%clk 0:00:13.8]} 20. Ke2 {[%clk 0:01:04.7]} 20... g5 {[%clk
0:00:12.8]} 21. Bg3 {[%clk 0:01:04.6]} 21... h5 {[%clk 0:00:13.7]} 22. h4 {[%clk
0:01:04]} 22... g4 {[%clk 0:00:13.9]} 23. c4 {[%clk 0:01:02.3]} 23... f5 {[%clk
0:00:13.3]} 24. cxd5 {[%clk 0:01:01.9]} 24... cxd5 {[%clk 0:00:13.1]} 25. Rg1
{[%clk 0:00:59.7]} 25... e5 {[%clk 0:00:12.8]} 26. Bxe5 {[%clk 0:00:59.3]} 26...
Ke6 {[%clk 0:00:13.7]} 27. Rc1 {[%clk 0:00:58.4]} 27... f4 {[%clk 0:00:13.7]}
28. Rc6+ {[%clk 0:00:57.7]} 28... Kd7 {[%clk 0:00:13.9]} 29. Rd6+ {[%clk
0:00:56.6]} 29... Ke7 {[%clk 0:00:13.7]} 30. Rxd8 {[%clk 0:00:56.3]} 30... Rxd8
{[%clk 0:00:14.4]} 31. Bxf4 {[%clk 0:00:56.2]} 31... Ke6 {[%clk 0:00:15.3]} 32.
Rd3 {[%clk 0:00:53.6]} 32... Rd7 {[%clk 0:00:07]} 33. Bc8 {[%clk 0:00:52.4]} 1-0

[Event "Late-Titled-Tuesday-Blitz-March-12-2024"]
[Site "Chess.com"]
[Date "2024.03.12"]
[Round "9"]
[White "AccioChess"]
[Black "KSho99"]
[Result "1-0"]
[WhiteElo "2449"]
[BlackElo "2176"]
[TimeControl "180+1"]
[EndTime "15:41:50 PDT"]
[Termination "AccioChess won by resignation"]

1. e4 {[%clk 0:02:49.3]} 1... e6 {[%clk 0:02:59.1]} 2. d4 {[%clk 0:02:48.7]}
2... d5 {[%clk 0:02:57.1]} 3. Nc3 {[%clk 0:02:49.6]} 3... Be7 {[%clk 0:02:56.7]}
4. e5 {[%clk 0:02:48.8]} 4... c5 {[%clk 0:02:55.8]} 5. Nce2 {[%clk 0:02:45.9]}
5... Nc6 {[%clk 0:02:47.5]} 6. Nf3 {[%clk 0:02:45.3]} 6... g5 {[%clk 0:02:23.5]}
7. h3 {[%clk 0:02:34.2]} 7... h5 {[%clk 0:02:16.6]} 8. dxc5 {[%clk 0:02:27.3]}
8... Nh6 {[%clk 0:02:06.9]} 9. c3 {[%clk 0:02:25.2]} 9... g4 {[%clk 0:01:38.5]}
10. hxg4 {[%clk 0:02:24.1]} 10... Nxg4 {[%clk 0:01:38.2]} 11. b4 {[%clk
0:02:00.5]} 11... a5 {[%clk 0:01:36.2]} 12. Ned4 {[%clk 0:02:00.1]} 12... Ncxe5
{[%clk 0:01:18.2]} 13. Nxe5 {[%clk 0:02:01]} 13... Nxe5 {[%clk 0:01:17.8]} 14.
Rxh5 {[%clk 0:01:57.8]} 14... Rxh5 {[%clk 0:01:14.7]} 15. Qxh5 {[%clk
0:01:58.7]} 15... Ng6 {[%clk 0:01:11.5]} 16. Bd3 {[%clk 0:01:57.3]} 16... Nf8
{[%clk 0:01:11]} 17. Bh6 {[%clk 0:01:41.7]} 17... axb4 {[%clk 0:01:07.4]} 18.
cxb4 {[%clk 0:01:25]} 18... Bd7 {[%clk 0:01:07.3]} 19. Kf1 {[%clk 0:00:54.9]}
19... Qc7 {[%clk 0:00:59.4]} 20. a4 {[%clk 0:00:30.9]} 20... Rxa4 {[%clk
0:00:51.7]} 21. Rxa4 {[%clk 0:00:29.9]} 21... Bxa4 {[%clk 0:00:51.7]} 22. Bxf8
{[%clk 0:00:25.4]} 22... Bxf8 {[%clk 0:00:49.2]} 23. Nxe6 {[%clk 0:00:24]} 23...
Qe7 {[%clk 0:00:37.9]} 24. Nxf8 {[%clk 0:00:20.4]} 24... Qxf8 {[%clk 0:00:37.2]}
25. Qxd5 {[%clk 0:00:19.5]} 25... Bc6 {[%clk 0:00:37.2]} 26. Qe5+ {[%clk
0:00:19.4]} 26... Kd8 {[%clk 0:00:33]} 27. Qb8+ {[%clk 0:00:18.8]} 27... Ke7
{[%clk 0:00:32.7]} 28. Qxf8+ {[%clk 0:00:17.4]} 28... Kxf8 {[%clk 0:00:33.6]}
29. Bc4 {[%clk 0:00:16.9]} 29... f6 {[%clk 0:00:33.4]} 30. f3 {[%clk 0:00:16.4]}
30... Ke7 {[%clk 0:00:33.2]} 31. b5 {[%clk 0:00:16.7]} 31... Be8 {[%clk
0:00:32.9]} 32. Kf2 {[%clk 0:00:17.2]} 32... f5 {[%clk 0:00:32.8]} 33. Ke3
{[%clk 0:00:17]} 33... Kf6 {[%clk 0:00:33.4]} 34. Kf4 {[%clk 0:00:17.3]} 34...
Bd7 {[%clk 0:00:33.1]} 35. Bd5 {[%clk 0:00:17.3]} 1-0

[Event "Late-Titled-Tuesday-Blitz-March-12-2024"]
[Site "Chess.com"]
[Date "2024.03.12"]
[Round "9"]
[White "maurovargas01"]
[Black "JaackCamel"]
[Result "0-1"]
[WhiteElo "1835"]
[BlackElo "2201"]
[TimeControl "180+1"]
[EndTime "15:41:51 PDT"]
[Termination "JaackCamel won on time"]

1. e4 {[%clk 0:01:16.5]} 1... e6 {[%clk 0:02:57.8]} 2. f4 {[%clk 0:01:16.2]}
2... d5 {[%clk 0:02:56.7]} 3. e5 {[%clk 0:01:17.1]} 3... c5 {[%clk 0:02:55.1]}
4. Nf3 {[%clk 0:01:17.7]} 4... Nc6 {[%clk 0:02:53.6]} 5. Bb5 {[%clk 0:01:18.2]}
5... Bd7 {[%clk 0:02:53.4]} 6. Bxc6 {[%clk 0:01:19.1]} 6... Bxc6 {[%clk
0:02:52.9]} 7. O-O {[%clk 0:01:20]} 7... Nh6 {[%clk 0:02:50]} 8. d3 {[%clk
0:01:20.9]} 8... Be7 {[%clk 0:02:49.3]} 9. h3 {[%clk 0:01:20.7]} 9... O-O {[%clk
0:02:48]} 10. g4 {[%clk 0:01:20.8]} 10... f5 {[%clk 0:02:21.6]} 11. g5 {[%clk
0:01:20.1]} 11... Nf7 {[%clk 0:02:19.2]} 12. Qe1 {[%clk 0:01:19.6]} 12... Nh8
{[%clk 0:02:11.7]} 13. h4 {[%clk 0:01:18]} 13... d4 {[%clk 0:02:08.9]} 14. h5
{[%clk 0:01:15.4]} 14... b5 {[%clk 0:02:00.4]} 15. Qg3 {[%clk 0:01:13.5]} 15...
c4 {[%clk 0:01:56.9]} 16. Rf2 {[%clk 0:01:11.7]} 16... a5 {[%clk 0:01:47.3]} 17.
b3 {[%clk 0:01:11.2]} 17... c3 {[%clk 0:01:44]} 18. a3 {[%clk 0:00:58.6]} 18...
b4 {[%clk 0:01:38.7]} 19. axb4 {[%clk 0:00:53.2]} 19... axb4 {[%clk 0:01:28]}
20. Rxa8 {[%clk 0:00:52.2]} 20... Qxa8 {[%clk 0:01:26.7]} 21. Nxd4 {[%clk
0:00:49.2]} 21... Bd5 {[%clk 0:01:17.6]} 22. Be3 {[%clk 0:00:43.9]} 22... Nf7
{[%clk 0:01:08.4]} 23. g6 {[%clk 0:00:38.6]} 23... Nh6 {[%clk 0:01:05.3]} 24.
gxh7+ {[%clk 0:00:36.8]} 24... Kh8 {[%clk 0:01:03.8]} 25. Nb5 {[%clk 0:00:13]}
25... Ng4 {[%clk 0:01:00.9]} 26. Bd4 {[%clk 0:00:10.3]} 26... Qd8 {[%clk
0:00:49.2]} 27. Nd6 {[%clk 0:00:09.3]} 27... Bh4 {[%clk 0:00:46.5]} 28. Qh3
{[%clk 0:00:06.5]} 28... Bxf2+ {[%clk 0:00:42.2]} 29. Kf1 {[%clk 0:00:04.5]}
29... Bxd4 {[%clk 0:00:41.5]} 0-1